[Event "Chessable English Open-ch 2022"]
[Site "Kenilwoth"]
[Date "2022.05.20"]
[Round "4.10"]
[White "Haydon, David L"]
[Black "Parker, Keith"]
[Result "*"]
[ECO "A06"]
[WhiteElo "2275"]
[BlackElo "1815"]
[Annotator "TA"]
[PlyCount "29"]
[EventDate "2022.05.18"]
[EventType "swiss"]
[EventCountry "ENG"]
[SourceTitle "playchess.com"]
[Source "ChessBase"]
[SourceQuality "1"]
[TimeControl "5400+30"]

{[%evp 9,29,7,29,28,46,43,48,26,26,21,31,29,42,43,44,19,30,13,16,14,23,7]} 1. Nf3 {[%emt 0:14:12]} Nf6 {[%emt 0:00:33]} 2. e3 {[%emt 0:00:32]} d5 {[%emt 0:01:44]} 3. b3 {[%emt 0:00:12]} g6 {[%emt 0:00:46]} 4. Bb2 {[%emt 0:00:27]} Bg7 {[%emt 0:00:06]} 5. Be2 {[%emt 0:01:25]} Bg4 {[%emt 0:01:41]} 6. c4 {[%emt 1:16:42] A06: Réti Opening: 1 Nf3 d5.} Bxf3 {[%emt 0:04:03]} 7. Bxf3 {[%emt 0:02:02]} c6 {[%emt 0:00:57] [#]} 8. Qc2 $146 {[%emt 0:02:41] White is slightly better.} ({Predecessor:} 8. O-O O-O 9. d4 e6 10. Nd2 Qe7 11. Be2 Rd8 12. Qc2 Ne8 13. Nf3 Nd7 14. a4 {1-0 (36) Koepke,C (2332)-Egger,M (2007) Austria 2020}) 8... O-O {[%emt 0:01:15]} 9. d4 {[%emt 0:00:51]} Re8 {[%emt 0:05:02]} 10. Nc3 {[%emt 0:01:01]} e6 {[%emt 0:05:37]} 11. O-O {[%emt 0:01:10]} Nbd7 {[%emt 0:01:49]} 12. Rad1 {[%emt 0:00:44]} Rc8 {[%emt 0:01:16]} 13. Rfe1 {[%emt 0:01:58]} Qc7 {[%emt 0:04:15]} 14. Qb1 {[%emt 0:04:43]} Qb8 {[%emt 0:03:53]} 15. e4 {[%emt 0:04:23] Weighted Error Value: White=0.07 (flawless) /Black=0.07 (flawless)} *

[Event "Chessable English Open-ch 2022"]
[Site "Kenilwoth"]
[Date "2022.05.20"]
[Round "4.10"]
[White "Ireland, David J"]
[Black "Hackner, Oskar A"]
[Result "0-1"]
[ECO "C00"]
[WhiteElo "2000"]
[BlackElo "2177"]
[Annotator "TA"]
[PlyCount "40"]
[EventDate "2022.05.18"]
[EventType "swiss"]
[EventCountry "ENG"]
[SourceTitle "playchess.com"]
[Source "ChessBase"]
[SourceQuality "1"]
[TimeControl "5400+30"]

{[%evp 10,40,-10,-15,-22,-29,-30,-67,-67,-65,-79,-70,-79,-75,-74,-233,-236,-226,-237,-241,-237,-272,-263,-460,-462,-1651,-1645,-29980,-29981,-29981,-5094,-29992,-29993]} 1. e4 {[%emt 0:12:16]} e6 {[%emt 0:00:06]} 2. c4 {[%emt 0:00:25]} d5 {[%emt 0:00:06]} 3. cxd5 {[%emt 0:00:05]} exd5 {[%emt 0:00:06]} 4. exd5 {[%emt 0:00:06]} Nf6 {[%emt 0:00:07][%cal Bg8f6,Bf6d5,Bd5b6,Bb6d5,Bd5e3][%mdl 32]} 5. Nc3 {[%emt 0:00:13]} Nxd5 {[%emt 0:00:07]} 6. Bc4 {[%emt 0:00:17]} Nb6 {[%emt 0:00:08] Active counter play! C00: French: Unusual White 2nd moves.} 7. Bb3 {[%emt 0:00:03]} Nc6 {[%emt 0:00:08]} 8. Nf3 {[%emt 0:00:50]} Qe7+ {[%emt 0:01:39] [#] Black is slightly better.} 9. Kf1 $146 {[%emt 0:04:06]} ({Predecessor:} 9. Qe2 Bg4 10. Qxe7+ Bxe7 11. Nb5 O-O-O 12. Bd1 {½-½ (12) Grozea,F (1724)-Alten,S (1893) Berlin 2019}) 9... Be6 {[%emt 0:04:03]} 10. d4 {[%emt 0:01:50]} O-O-O {[%emt 0:01:44]} 11. Be3 {[%emt 0:01:18]} Nd5 {[%emt 0:04:21]} 12. Rc1 $2 {[%emt 0:03:13] [#]} (12. Bxd5 $17 Bxd5 13. g3) 12... Nxe3+ $19 {[%emt 0:01:54]} 13. fxe3 {[%emt 0:00:56]} Bxb3 {[%emt 0:00:13]} 14. Qxb3 {[%emt 0:00:39]} Qxe3 {[%emt 0:00:43]} 15. Re1 {[%emt 0:01:40]} Qd3+ {[%emt 0:03:51]} 16. Kf2 $2 {[%emt 0:01:32]} (16. Ne2 Qxb3 17. axb3) 16... Nxd4 {[%emt 0:01:05]} 17. Nxd4 {[%emt 0:03:57]} (17. Qd1 $142 Qg6 18. Re5 Nxf3 19. Qxf3) 17... Qxd4+ {[%emt 0:00:17]} 18. Kf3 {[%emt 0:05:36]} Qf6+ {[%emt 0:00:17]} 19. Ke2 {[%emt 0:01:49] [#]} Bc5 {[%emt 0:00:26]} (19... Bb4 $142 $1 {[%mdl 512]} 20. Qxb4 (20. Nd5 Rhe8+) 20... Rhe8+ 21. Ne4 Qf4 22. Rd1 Rxe4+ 23. Qxe4 Qxe4+ 24. Kf2 Qf4+ 25. Ke2 Re8+ 26. Kd3 Qd6+ 27. Kc3 Re3+ 28. Kc2 Re2+ 29. Kb3 Qb6+ 30. Kc4 Qc6+ 31. Kb3 Qc2+ 32. Ka3 Qxb2+ 33. Ka4 Re4+ 34. Rd4 Rxd4+ 35. Ka5 Qb6#) 20. Ne4 {[%emt 0:01:11]} Rhe8 {[%emt 0:00:14] White got outplayed after the opening.  Weighted Error Value: White=1.26/Black=0.36} 0-1

[Event "Chessable English Open-ch 2022"]
[Site "Kenilwoth"]
[Date "2022.05.20"]
[Round "4.11"]
[White "Zheng, Harry Z"]
[Black "Macklin, Paul"]
[Result "1/2-1/2"]
[ECO "B90"]
[WhiteElo "1915"]
[BlackElo "2350"]
[Annotator "TA"]
[PlyCount "58"]
[EventDate "2022.05.18"]
[EventType "swiss"]
[EventCountry "ENG"]
[SourceTitle "playchess.com"]
[Source "ChessBase"]
[SourceQuality "1"]
[TimeControl "5400+30"]

{[%evp 20,58,8,0,2,11,5,2,9,0,7,0,0,0,19,0,0,-12,-7,-12,25,16,9,0,0,0,0,0,4,7,3,0,16,0,0,0,12,4,5,0,2]} 1. e4 {[%emt 0:00:03]} c5 {[%emt 0:03:20]} 2. Nf3 {[%emt 0:00:10]} d6 {[%emt 0:00:12]} 3. d4 {[%emt 0:00:11]} cxd4 {[%emt 0:00:06]} 4. Nxd4 {[%emt 0:00:08]} Nf6 {[%emt 0:00:07]} 5. Nc3 {[%emt 0:00:08]} a6 {[%emt 0:00:06]} 6. Be3 {[%emt 0:00:17]} e5 {[%emt 0:00:21]} 7. Nf3 {[%emt 0:00:20]} Be7 {[%emt 0:00:09]} 8. Bc4 {[%emt 0:00:27]} O-O {[%emt 0:00:14]} 9. O-O {[%emt 0:00:18]} Nc6 {[%emt 0:00:13]} 10. Bg5 {[%emt 0:01:52]} Be6 {[%emt 0:00:24]} 11. Bb3 {[%emt 0:00:43]} Nd7 {[%emt 0:05:13] B90: Sicilian Najdorf: Unusual White 6th moves, 6 Be3 Ng4 and 6 Be3 e5.} 12. Bxe7 {[%emt 0:03:55]} Qxe7 {[%emt 0:00:05]} 13. Nd5 {[%emt 0:01:34]} Qd8 {[%emt 0:00:12]} 14. c3 {[%emt 0:02:03]} Na5 {[%emt 0:03:07]} 15. Re1 {[%emt 0:05:46]} (15. Ne3 $5 {[%cal Rb3e6]} Nxb3 16. axb3 $11) 15... Nxb3 {[%emt 0:00:48]} 16. axb3 {[%emt 0:02:07] [#]} Nb6 $146 {[%emt 0:01:32]} ({Predecessor:} 16... Rc8 17. h3 Kh8 18. c4 f5 19. exf5 Bxf5 20. Re3 Nc5 21. b4 Ne6 22. b3 Bg6 {½-½ (35) Bodaan,T-Roberts,A LSS email 2007}) 17. Nxb6 {[%emt 0:07:25]} Qxb6 {[%emt 0:00:06]} 18. b4 {[%emt 0:00:28]} h6 {[%emt 0:04:56]} 19. Qd3 {[%emt 0:08:34]} f5 {[%emt 0:02:19]} 20. exf5 {[%emt 0:06:17]} Bxf5 {[%emt 0:02:14] The position is equal.} 21. Qe3 {[%emt 0:06:09]} Qc6 {[%emt 0:01:09]} 22. Nd2 {[%emt 0:08:15]} Rae8 {[%emt 0:08:06]} 23. Ne4 {[%emt 0:04:05]} Bxe4 {[%emt 0:19:02]} 24. Qxe4 {[%emt 0:05:40]} d5 {[%emt 0:13:06]} 25. Qd3 {[%emt 0:03:40]} Kh8 {[%emt 0:03:03]} 26. Ra5 {[%emt 0:05:34]} Qf6 {[%emt 0:04:06]} 27. Qg3 {[%emt 0:07:41] Active counter play!} Qd6 {[%emt 0:00:09]} 28. Rd1 {[%emt 0:03:13]} d4 {[%emt 0:00:08]} 29. h3 {[%emt 0:17:57][%cal Od1d4] Strongly threatening Rxd4!} Rf6 {[%emt 0:02:02] A balanced but interesting game.  Weighted Error Value: White=0.06 (flawless) /Black=0.05 (flawless)} 1/2-1/2

[Event "Chessable English Open-ch 2022"]
[Site "Kenilwoth"]
[Date "2022.05.20"]
[Round "4.12"]
[White "Shearsby, Jude"]
[Black "Thompson, Ian D"]
[Result "1/2-1/2"]
[ECO "C13"]
[WhiteElo "1849"]
[BlackElo "2074"]
[Annotator "TA"]
[PlyCount "41"]
[EventDate "2022.05.18"]
[EventType "swiss"]
[EventCountry "ENG"]
[SourceTitle "playchess.com"]
[Source "ChessBase"]
[SourceQuality "1"]
[TimeControl "5400+30"]

{[%evp 10,41,14,-43,-42,-29,-19,-22,-14,-24,-4,-5,20,-8,0,0,8,5,10,0,43,25,44,28,32,30,58,31,117,122,130,106,76,121]} 1. e4 {[%emt 0:02:40]} e6 {[%emt 0:00:09]} 2. d4 {[%emt 0:00:10]} d5 {[%emt 0:00:05]} 3. Nc3 {[%emt 0:00:05]} Nf6 {[%emt 0:00:07]} 4. Bg5 {[%emt 0:00:08]} dxe4 {[%emt 0:00:08]} 5. Nxe4 {[%emt 0:00:10]} Be7 {[%emt 0:00:06]} 6. Ng3 {[%emt 0:01:37]} (6. Nxf6+ $11 Bxf6 7. Bxf6 Qxf6 8. Nf3) 6... c5 $15 {[%emt 0:02:37] C13: French: Classical System: 4 Bg5 Be7, Alekhine-Chatard Attack.} 7. dxc5 {[%emt 0:03:08]} Qa5+ {[%emt 0:00:44]} 8. c3 {[%emt 0:01:22]} Qxc5 {[%emt 0:00:50] The position is equal.} 9. Be3 {[%emt 0:00:24]} Qa5 {[%emt 0:02:46]} 10. Nf3 {[%emt 0:02:00]} Nc6 {[%emt 0:01:15] [#]} 11. Be2 $146 {[%emt 0:03:42]} ({Predecessor:} 11. Bd3 Ng4 12. Bd2 Qb6 13. O-O O-O 14. Qc2 g6 15. Rae1 Bf6 16. Bf4 Bg7 17. Qe2 {1-0 (48) Halak,M (2224)-Draga,B (1954) Hungary 2014}) 11... O-O {[%emt 0:03:39]} 12. O-O {[%emt 0:01:01]} Nd5 {[%emt 0:10:28]} 13. Bd2 {[%emt 0:02:51] [#] And now c4 would win.} Qc7 {[%emt 0:01:17]} 14. Re1 {[%emt 0:06:34]} e5 {[%emt 0:07:36]} 15. Bb5 {[%emt 0:04:47]} f6 {[%emt 0:01:58]} 16. Qc2 {[%emt 0:08:54] Threatens to win with Bd3.} g6 {[%emt 0:12:49]} 17. h4 {[%emt 0:07:36]} Bc5 {[%emt 0:03:53][%cal Oc5f2]} 18. Ne4 {[%emt 0:03:44]} Bb6 {[%emt 0:06:26]} ({Better is} 18... Be7 $14) 19. Bh6 {[%emt 0:03:37] White is better.} Rf7 {[%emt 0:00:32]} 20. a3 {[%emt 0:04:12] White is more active.} Be6 {[%emt 0:02:04]} 21. Rad1 {[%emt 0:11:59] Weighted Error Value: White=0.10 (very precise) /Black=0.17 (very precise)} 1/2-1/2

[Event "Chessable English Open-ch 2022"]
[Site "Kenilwoth"]
[Date "2022.05.20"]
[Round "4.13"]
[White "Pert, Max"]
[Black "Khoury, Theo"]
[Result "1/2-1/2"]
[ECO "B23"]
[WhiteElo "1634"]
[BlackElo "1927"]
[Annotator "TA"]
[PlyCount "40"]
[EventDate "2022.05.18"]
[EventType "swiss"]
[EventCountry "ENG"]
[SourceTitle "playchess.com"]
[Source "ChessBase"]
[SourceQuality "1"]
[TimeControl "5400+30"]

{[%evp 9,40,0,5,0,0,0,0,-10,8,0,8,3,8,0,3,0,0,0,0,0,0,0,0,0,0,0,0,0,0,-40,-33,-32,0]} 1. e4 {[%emt 0:00:02]} c5 {[%emt 0:00:07]} 2. Nc3 {[%emt 0:00:28]} d6 {[%emt 0:00:06]} 3. d4 {[%emt 0:00:37]} cxd4 {[%emt 0:00:14]} 4. Qxd4 {[%emt 0:00:04]} Nc6 {[%emt 0:00:07]} 5. Qd2 {[%emt 0:00:41]} g6 {[%emt 0:00:06]} 6. b3 {[%emt 0:00:31] B23: Closed Sicilian: Lines without g3.} Bh6 {[%emt 0:00:07]} 7. f4 {[%emt 0:00:46]} Nf6 {[%emt 0:00:10]} 8. Bb2 {[%emt 0:00:40] The position is equal.} O-O {[%emt 0:00:17]} 9. O-O-O {[%emt 0:01:01]} e5 {[%emt 0:00:23] 9...e5 is better than 9...a5.} 10. g3 {[%emt 0:01:05]} Re8 {[%emt 0:00:18]} 11. Kb1 {[%emt 0:01:01]} Nd4 {[%emt 0:00:40][%cal Ob7b5]} 12. Nge2 {[%emt 0:03:08]} Bg4 {[%emt 0:00:11]} 13. Nxd4 {[%emt 0:02:17]} exd4 {[%emt 0:00:17]} 14. Qxd4 {[%emt 0:00:09][%cal Of1b5] [#] Strongly threatening Bb5!} Bg7 {[%emt 0:00:08][%cal Of6e4] aiming for ...Nxe4!} 15. Rc1 $1 {[%emt 0:01:17]} Nxe4 {[%emt 0:00:11]} 16. Qxg7+ {[%emt 0:01:15]} Kxg7 {[%emt 0:00:07]} 17. Nxe4+ {[%emt 0:00:05]} Kf8 {[%emt 0:00:04]} 18. Nf6 {[%emt 0:01:00]} Bf3 {[%emt 0:00:06] [#] And now ...Re6 would win.} 19. Nxh7+ $146 {[%emt 0:00:46]} ({Predecessor:} 19. Rg1 h5 20. Nh7+ Kg8 21. Nf6+ Kf8 22. Nh7+ Kg8 23. Nf6+ Kf8 {½-½ (23) Paichadze,L (2564)-Donchenko,A (2657) Reykjavik 2021}) 19... Kg8 {[%emt 0:00:04]} 20. Nf6+ {[%emt 0:00:47]} Kf8 {[%emt 0:00:07] Weighted Error Value: White=0.05 (flawless) /Black=0.03 (flawless)} (20... Qxf6 $5 21. Bxf6 Bxh1 $11) 1/2-1/2

[Event "Chessable English Open-ch 2022"]
[Site "Kenilwoth"]
[Date "2022.05.20"]
[Round "4.14"]
[White "Herring, Samuel"]
[Black "Duncan, Patrick C M"]
[Result "0-1"]
[ECO "A17"]
[WhiteElo "1900"]
[BlackElo "2013"]
[Annotator "TA"]
[PlyCount "174"]
[EventDate "2022.05.18"]
[EventType "swiss"]
[EventCountry "ENG"]
[SourceTitle "playchess.com"]
[Source "ChessBase"]
[SourceQuality "1"]
[TimeControl "5400+30"]

{[%evp 19,174,9,29,12,44,37,37,35,38,40,43,40,38,20,32,-35,10,13,66,33,40,16,35,-6,54,25,28,12,7,0,2,6,0,20,0,0,62,37,55,37,100,87,98,98,152,147,143,136,136,65,55,72,87,81,85,79,87,88,74,79,106,105,95,93,89,78,85,79,174,133,115,76,717,562,535,431,380,-24,105,103,121,0,0,-37,-45,-70,-75,-298,-212,-221,-215,-445,0,0,0,0,0,0,0,0,0,0,0,-8,0,0,94,92,86,79,355,269,5583,5583,4710,987,709,0,728,0,0,0,995,923,863,791,1358,1238,1138,1010,29967,6616,1767,1317,876,727,667,424,496,370,387,0,0,0,0,0,29965,29965,29967,29969,29974,29974,29974,29973,29973,29974,29972]} 1. Nf3 {[%emt 0:00:02] Primel,D} Nf6 {[%emt 0:00:12]} 2. g3 {[%emt 0:00:04]} b6 {[%emt 0:02:02]} 3. Bg2 {[%emt 0:00:04]} Bb7 {[%emt 0:00:06]} 4. O-O {[%emt 0:00:05]} c5 {[%emt 0:01:09]} 5. d3 {[%emt 0:00:12]} e6 {[%emt 0:02:52]} 6. e4 {[%emt 0:00:35]} d6 {[%emt 0:00:42]} 7. c4 {[%emt 0:00:46]} Be7 {[%emt 0:01:37]} 8. b3 {[%emt 0:01:12]} O-O {[%emt 0:01:30]} 9. Bb2 {[%emt 0:00:44]} Nc6 {[%emt 0:03:02]} 10. Nc3 {[%emt 0:02:41]} a6 {[%emt 0:01:16]} 11. Re1 {[%emt 0:03:12] A17: English Opening: 1...Nf6 with ...Bb4.} Qc7 {[%emt 0:04:32]} 12. d4 {[%emt 0:01:20]} cxd4 {[%emt 0:00:58]} 13. Nxd4 {[%emt 0:00:05] White is slightly better.} Nxd4 {[%emt 0:02:27]} 14. Qxd4 {[%emt 0:00:26]} Rfd8 {[%emt 0:10:19]} 15. Rad1 {[%emt 0:04:29]} Bc6 {[%emt 0:02:05] [#]} 16. a4 $146 {[%emt 0:13:43]} ({Predecessor:} 16. Qe3 b5 17. cxb5 axb5 18. a3 Qb7 19. b4 Ng4 20. Qe2 Ne5 21. Bc1 Be8 22. f4 {½-½ (28) Ostojic,P (2480)-Gavela,D (2200) Belgrade 1977 EXT 2018 [Primel,D]}) 16... Rac8 {[%emt 0:02:55]} 17. g4 {[%emt 0:07:28]} (17. Ba3 $14) 17... Ne8 {[%emt 0:03:06]} 18. Qe3 {[%emt 0:04:10]} Bb7 {[%emt 0:10:06]} (18... h6 $11) 19. Ne2 {[%emt 0:09:36][%cal Bc3e2,Be2d4,Bd4c2,Bc2a3,Ba3c4][%mdl 32]} (19. g5 $5 {[%cal Rb2a3]}) 19... Bf6 {[%emt 0:02:27]} 20. Nd4 {[%emt 0:05:20]} g6 {[%emt 0:04:49]} 21. h4 {[%emt 0:02:52][%cal Bh2h4,Bh4h5][%mdl 32]} Bg7 {[%emt 0:03:47]} (21... e5 $11 22. Nf3 Be7) 22. h5 {[%emt 0:02:15]} e5 {[%emt 0:03:34]} 23. Nc2 {[%emt 0:02:29]} b5 {[%emt 0:01:14]} 24. h6 {[%emt 0:03:59]} Bh8 {[%emt 0:00:48]} 25. axb5 {[%emt 0:00:44]} axb5 {[%emt 0:00:07]} 26. Na3 {[%emt 0:00:48]} bxc4 {[%emt 0:00:53]} 27. Nxc4 {[%emt 0:00:40]} Rb8 {[%emt 0:02:21]} (27... Qe7 $11) 28. Ba3 {[%emt 0:10:12]} Ba6 {[%emt 0:02:30]} 29. Bf1 {[%emt 0:01:08]} Bxc4 {[%emt 0:06:05]} (29... Bf6 $14) 30. Bxc4 $16 {[%emt 0:00:39]} (30. bxc4 Bf6 $14) 30... Qe7 {[%emt 0:00:32]} 31. Rd3 {[%emt 0:06:12]} Bf6 {[%emt 0:01:14] Against g5} (31... Ra8 $142) 32. Bc1 $1 {[%emt 0:05:18]} Nc7 {[%emt 0:01:04]} 33. g5 {[%emt 0:00:23]} Bh8 {[%emt 0:00:08]} 34. Qa7 {[%emt 0:02:57]} (34. Qg3 $16) 34... Ra8 $14 {[%emt 0:01:13]} 35. Qb7 {[%emt 0:02:54]} Rab8 {[%emt 0:03:05]} 36. Qc6 {[%emt 0:01:00]} Ne6 {[%emt 0:00:41]} 37. Rg3 {[%emt 0:00:51]} Rdc8 {[%emt 0:02:46]} 38. Qd5 {[%emt 0:01:16]} Nd4 {[%emt 0:04:59]} 39. Ba3 {[%emt 0:01:06] Against Rc5. This bishop pair is nice.} Rb6 {[%emt 0:03:44]} 40. Rd1 {[%emt 0:00:40]} Rd8 {[%emt 0:03:49]} 41. Kf1 {[%emt 0:00:48]} Ne6 {[%emt 0:00:52]} 42. Bc1 {[%emt 0:00:37]} Rbb8 {[%emt 0:02:21]} 43. Be3 {[%emt 0:00:30]} Rbc8 {[%emt 0:01:09]} (43... Nf4 $16 44. Qd2 Qb7) 44. Rf3 {[%emt 0:00:34]} Rd7 {[%emt 0:01:45]} 45. b4 {[%emt 0:02:35]} Nc7 $2 {[%emt 0:00:07][%mdl 8192]} (45... Nf4 $16 46. Bxf4 exf4) 46. Qc6 {[%emt 0:00:57]} Rf8 {[%emt 0:00:18]} 47. b5 {[%emt 0:00:30]} Ne6 {[%emt 0:01:35] Against Bc5} 48. Rg3 $2 {[%emt 0:00:36]} (48. b6 $18 Nf4 49. Rb1) 48... Nd4 {[%emt 0:00:41]} (48... Rc7 $11 {keeps the balance.} 49. Qd5 Nf4 50. Bxf4 exf4) 49. Qd5 $16 {[%emt 0:01:21] Black must now prevent b6.} Rc7 {[%emt 0:00:29]} 50. Bxd4 {[%emt 0:00:48]} (50. Bd3 $1 $16) 50... exd4 $11 {[%emt 0:00:17]} 51. Bd3 {[%emt 0:00:37]} (51. Rxd4 $2 Be5 52. Ra3 (52. b6 $2 Rc5 $19) 52... Rc5 53. Qxf7+ Qxf7 54. Bxf7+ Kxf7 $19) 51... Rc5 $36 {[%emt 0:00:27][%mdl 2048] Black has some pressure.} 52. Qb3 {[%emt 0:00:18]} Be5 {[%emt 0:01:01]} 53. Rf3 {[%emt 0:00:09]} (53. Rg4 $17) 53... Qxg5 {[%emt 0:01:01]} 54. Bc4 {[%emt 0:00:12][%cal Rf3f7]} Qxh6 {[%emt 0:00:53] Hoping for ...Qh1+.} 55. b6 $2 {[%emt 0:00:29]} (55. Rh3 Qf4 56. Bd5) 55... Rcc8 $2 {[%emt 0:00:58]} ({Black should try} 55... Qh1+ $19 56. Ke2 Qh5) 56. b7 {[%emt 0:00:11]} Rb8 {[%emt 0:00:07]} 57. Bd5 {[%emt 0:01:11][%cal Rf3f7]} Kg7 {[%emt 0:00:25]} 58. Qd3 {[%emt 0:00:28]} (58. Rxf7+ $2 Rxf7 59. Bxf7 Qh1+ 60. Ke2 Qxe4+ 61. Kf1 d3 62. Qxd3 Qxd3+ 63. Rxd3 Kxf7 $19) 58... Qg5 {[%emt 0:00:24]} 59. Ra1 {[%emt 0:00:37]} Qe7 {[%emt 0:00:16]} 60. Qb5 {[%emt 0:00:45]} Qc7 {[%emt 0:00:31]} 61. Rfa3 {[%emt 0:01:02][%cal Bf3a3,Ba3a8,Ba8b8][%mdl 32]} d3 {[%emt 0:01:18]} 62. Rd1 $1 {[%emt 0:00:16]} Qc2 {[%emt 0:00:52]} (62... d2 $11 {remains equal.}) 63. Qxd3 $16 {[%emt 0:00:42]} Qc5 {[%emt 0:00:20]} 64. Ra8 {[%emt 0:00:40]} f5 $2 {[%emt 0:00:34][%mdl 8192]} (64... h5 $16 {was called for.}) 65. Rxb8 {[%emt 0:00:29]} fxe4 $2 {[%emt 0:00:08]} (65... Rxb8 66. exf5 Rf8) 66. Rxf8 $18 {[%emt 0:00:38]} exd3 {[%emt 0:01:09] [#]} 67. b8=Q $1 {[%emt 0:00:13]} Qxd5 {[%emt 0:00:21]} 68. f3 $2 {[%emt 0:01:03]} ({Better is} 68. Qa8 $18 Qxa8 69. Rxa8) 68... d2 $2 {[%emt 0:00:41][%mdl 8192]} (68... Qa2 $11 69. Rxd3 Bg3) 69. Ke2 $2 {[%emt 0:00:27]} (69. Qe8 $1 $18 {[%cal Re8e7] Qe7+ would kill now.} Bf6 70. Rxf6 $1 {[%mdl 512]} Kxf6 71. Qe3) 69... Qc4+ $11 {[%emt 0:00:14]} 70. Kxd2 {[%emt 0:00:37] And now Qd8 would win.} Bc3+ $2 {[%emt 0:00:31][%mdl 8192]} (70... Qc3+ $11 71. Ke2 Qc4+ 72. Ke1 Qc3+ 73. Rd2 Qc1+ 74. Ke2 (74. Rd1 Bc3+ 75. Kf2 Qc2+ 76. Kg3 Qxd1 $17) 74... Qc4+ 75. Ke3 Qc3+ 76. Ke2 Qc4+ 77. Rd3 Qc2+ 78. Ke3 (78. Rd2 Qc4+ $11) 78... Qc1+ 79. Kf2 Qc2+ 80. Ke3 Qc1+ 81. Ke4 Qc4+ 82. Ke3 Qc1+) 71. Ke3 $18 {[%emt 0:00:20]} ({Worse is} 71. Kc1 Bb4+ 72. Kb2 Qc3+ 73. Kb1 Qb3+ 74. Kc1 Qc4+ 75. Kb2 Qc3+ 76. Kb1 Qb3+ 77. Kc1 Qc4+ $11) 71... Qc5+ {[%emt 0:00:34]} 72. Ke2 {[%emt 0:00:21]} Qe5+ {[%emt 0:00:22]} 73. Kd3 {[%emt 0:00:46]} Qd4+ {[%emt 0:00:13] [#]} 74. Kc2 $1 {[%emt 0:00:08]} Qc4 {[%emt 0:00:27] [#]} 75. Rg8+ $3 {[%emt 0:00:21][%mdl 512]} Kh6 {[%emt 0:00:54]} 76. Rh1+ {[%emt 0:00:28]} Kg5 {[%emt 0:00:08]} 77. Rc8 {[%emt 0:00:42]} Qe2+ {[%emt 0:00:46]} 78. Kxc3 {[%emt 0:00:43][%cal Oc8c5]} Qxf3+ {[%emt 0:00:09]} 79. Kd4 {[%emt 0:00:27] Intending Qb5+ and mate.} Qxh1 {[%emt 0:00:22]} 80. Qxd6 $2 {[%emt 0:00:28]} (80. Qb5+ $18 Kf6 81. Qd3) 80... Qd1+ $11 {[%emt 0:00:23]} 81. Ke5 {[%emt 0:00:36]} Qe2+ {[%emt 0:00:45]} 82. Kd5 {[%emt 0:00:22]} Qd3+ $2 {[%emt 0:00:38][%mdl 8192]} (82... Qf3+ $11 83. Kd4 Qg4+ 84. Ke3 Qxc8 85. Qf4+ Kh5 86. Qh2+ Kg5 87. Qf4+ Kh5 88. Qh2+ Kg5 89. Qf4+) 83. Kc6 {[%emt 0:00:19] White mates.} Qa6+ {[%emt 0:00:54]} 84. Kd7 {[%emt 0:00:09]} Qxd6+ {[%emt 0:00:14]} 85. Kxd6 {[%emt 0:00:06]} Kf4 {[%emt 0:00:46]} 86. Rf8+ {[%emt 0:00:16]} Ke4 {[%emt 0:00:30]} 87. Ke6 {[%emt 0:00:50]} g5 {[%emt 0:00:28][%mdl 32768] Both players deserved the win here.  Weighted Error Value: White=0.47/Black=0.29 (precise) . Loss on time!?} 0-1

[Event "Chessable English Open-ch 2022"]
[Site "Kenilwoth"]
[Date "2022.05.20"]
[Round "4.15"]
[White "Kumar, Soham"]
[Black "Hepworth, Peter"]
[Result "1/2-1/2"]
[ECO "C11"]
[WhiteElo "1678"]
[BlackElo "1843"]
[Annotator "NA COMBH"]
[PlyCount "77"]
[EventDate "2022.05.18"]
[EventType "swiss"]
[EventCountry "ENG"]
[SourceTitle "playchess.com"]
[Source "ChessBase"]
[SourceQuality "1"]
[TimeControl "5400+30"]

1. e4 {[%emt 0:00:01]} e6 {[%emt 0:00:03]} 2. d4 {[%emt 0:00:13]} d5 {[%emt 0:00:04]} 3. Nc3 {[%emt 0:00:07]} Nf6 {[%emt 0:00:05]} 4. e5 {[%emt 0:00:07]} Nfd7 {[%emt 0:00:04]} 5. f4 {[%emt 0:00:08]} c5 {[%emt 0:00:03]} 6. Nf3 {[%emt 0:00:08]} Nc6 {[%emt 0:00:04]} 7. Be3 {[%emt 0:00:48]} a6 {[%emt 0:00:05]} 8. a3 {[%emt 0:01:02]} b5 {[%emt 0:00:10]} 9. Be2 {[%emt 0:01:29]} Qb6 {[%emt 0:01:17]} 10. Qd2 {[%emt 0:14:28]} Bb7 {[%emt 0:05:01]} 11. O-O {[%emt 0:09:29]} cxd4 {[%emt 0:03:32]} 12. Nxd4 {[%emt 0:00:40]} Nxd4 {[%emt 0:00:26]} 13. Bxd4 {[%emt 0:00:12]} Bc5 {[%emt 0:00:07]} 14. Bxc5 {[%emt 0:06:04]} Nxc5 {[%emt 0:01:07]} 15. Kh1 {[%emt 0:00:57]} Ne4 {[%emt 0:04:27]} 16. Nxe4 {[%emt 0:00:15]} dxe4 {[%emt 0:00:06]} 17. Qb4 {[%emt 0:05:45]} Rc8 {[%emt 0:08:59]} 18. c4 {[%emt 0:05:29]} a5 {[%emt 0:04:54]} 19. Qb3 {[%emt 0:01:35]} O-O {[%emt 0:01:26]} 20. cxb5 {[%emt 0:01:04]} Rfd8 {[%emt 0:00:58]} 21. Rad1 {[%emt 0:11:44]} Rxd1 {[%emt 0:09:31]} 22. Qxd1 {[%emt 0:06:14]} g6 {[%emt 0:04:12]} 23. a4 {[%emt 0:06:43]} Rd8 {[%emt 0:14:34]} 24. Qc1 {[%emt 0:02:02]} Bd5 {[%emt 0:01:59]} 25. Qc3 {[%emt 0:03:04]} h5 {[%emt 0:10:48]} 26. Qg3 {[%emt 0:00:59]} Kf8 {[%emt 0:08:43]} 27. Qa3+ {[%emt 0:00:10]} Kg7 {[%emt 0:06:51]} 28. Qe7 {[%emt 0:01:09]} Bb3 {[%emt 0:02:41]} 29. Qf6+ {[%emt 0:00:24]} Kf8 {[%emt 0:00:31]} 30. Qh8+ {[%emt 0:00:19]} Ke7 {[%emt 0:00:05]} 31. Qf6+ {[%emt 0:00:06]} Ke8 {[%emt 0:00:07]} 32. Qh8+ {[%emt 0:00:10]} Kd7 {[%emt 0:00:18]} 33. Qg7 {[%emt 0:02:36]} Qe3 {[%emt 0:07:47]} 34. Qxf7+ {[%emt 0:00:09]} Kc8 {[%emt 0:00:04]} 35. b6 {[%emt 0:00:55]} Qxb6 {[%emt 0:00:09]} 36. Rc1+ {[%emt 0:02:28]} Kb8 {[%emt 0:00:12]} 37. Bb5 {[%emt 0:02:08]} Qc5 {[%emt 0:00:19]} 38. Rf1 {[%emt 0:02:23]} e3 {[%emt 0:02:46]} 39. h3 {[%emt 0:01:46]} 1/2-1/2